[Event "Titled Tuesday Blitz May 16 Late 2023"]
[White "Guz, Ari"]
[Black "Ansh M Shah"]
[WhiteFideId "2825759"]
[BlackFideId "25033379"]
[WhiteElo "2205"]
[BlackElo "2084"]
[Result "1-0"]
[Round "02"]
[TimeControl "180+2"]
[Date "2023.05.16"]
[WhiteClock "0:00:17"]
[BlackClock "0:00:08"]

1. Nf3 {[%clk 0:02:57]}  Nf6 {[%clk 0:02:57]} 2. b3 {[%clk 0:02:55]}  g6 {[%clk 0:02:57]} 3. Bb2 {[%clk 0:02:56]}  Bg7 {[%clk 0:02:58]} 4. e3 {[%clk 0:02:56]}  O-O {[%clk 0:02:58]} 5. d4 {[%clk 0:02:53]}  b6 {[%clk 0:02:59]} 6. Nbd2 {[%clk 0:02:53]}  Bb7 {[%clk 0:02:59]} 7. Bd3 {[%clk 0:02:51]}  d6 {[%clk 0:03:00]} 8. O-O {[%clk 0:02:51]}  Nbd7 {[%clk 0:03:01]} 9. e4 {[%clk 0:02:51]}  Re8 {[%clk 0:03:02]} 10. e5 {[%clk 0:02:51]}  dxe5 {[%clk 0:03:02]} 11. dxe5 {[%clk 0:02:52]}  Ng4 {[%clk 0:03:01]} 12. Re1 {[%clk 0:02:51]}  Nc5 {[%clk 0:02:41]} 13. Bc4 {[%clk 0:02:47]}  Nh6 {[%clk 0:02:32]} 14. Qe2 {[%clk 0:02:40]}  a6 {[%clk 0:02:31]} 15. a4 {[%clk 0:02:37]}  e6 {[%clk 0:02:26]} 16. Rad1 {[%clk 0:02:32]}  Qc8 {[%clk 0:02:17]} 17. Ng5 {[%clk 0:02:19]}  Bd5 {[%clk 0:01:59]} 18. Nde4 {[%clk 0:02:02]}  Nxe4 {[%clk 0:01:57]} 19. Nxe4 {[%clk 0:01:56]}  Qb7 {[%clk 0:01:42]} 20. Qf3 {[%clk 0:01:30]}  Bxe4 {[%clk 0:01:31]} 21. Qxe4 {[%clk 0:01:28]}  Qxe4 {[%clk 0:01:21]} 22. Rxe4 {[%clk 0:01:28]}  Nf5 {[%clk 0:01:02]} 23. g4 {[%clk 0:01:19]}  Ne7 {[%clk 0:00:53]} 24. Rd7 {[%clk 0:01:13]}  c6 {[%clk 0:00:52]} 25. h3 {[%clk 0:01:04]}  b5 {[%clk 0:00:51]} 26. Be2 {[%clk 0:01:01]}  bxa4 {[%clk 0:00:37]} 27. Rxa4 {[%clk 0:00:58]}  Nd5 {[%clk 0:00:38]} 28. Rxa6 {[%clk 0:00:52]}  Rxa6 {[%clk 0:00:35]} 29. Bxa6 {[%clk 0:00:53]}  Nb4 {[%clk 0:00:35]} 30. Bb7 {[%clk 0:00:43]}  Nxc2 {[%clk 0:00:33]} 31. Bxc6 {[%clk 0:00:43]}  Rc8 {[%clk 0:00:32]} 32. Bb7 {[%clk 0:00:38]}  Rb8 {[%clk 0:00:31]} 33. Bc3 {[%clk 0:00:30]}  Bf8 {[%clk 0:00:27]} 34. Be4 {[%clk 0:00:21]}  Rxb3 {[%clk 0:00:18]} 35. Bd2 {[%clk 0:00:20]}  Nb4 {[%clk 0:00:15]} 36. Rd8 {[%clk 0:00:20]}  Kg7 {[%clk 0:00:13]} 37. Bg5 {[%clk 0:00:19]}  h6 {[%clk 0:00:12]} 38. Bf6+ {[%clk 0:00:19]}  Kg8 {[%clk 0:00:12]} 39. Be7 {[%clk 0:00:19]}  Nc6 {[%clk 0:00:08]} 40. Bxc6 {[%clk 0:00:17]} 1-0


[Site "https://www.chess.com"]

[Event "Titled Tuesday Blitz May 16 Late 2023"]
[White "Vaglio Munoz, Jaime"]
[Black "Ilkhomi, Jaloliddin"]
[WhiteFideId "6500145"]
[BlackFideId "14700948"]
[WhiteElo "2199"]
[BlackElo "2045"]
[Result "1-0"]
[Round "02"]
[TimeControl "180+2"]
[Date "2023.05.16"]
[WhiteClock "0:01:39"]
[BlackClock "0:01:01"]

1. Nf3 {[%clk 0:02:52]}  Nf6 {[%clk 0:02:59]} 2. c4 {[%clk 0:02:52]}  e6 {[%clk 0:02:59]} 3. b3 {[%clk 0:02:52]}  b6 {[%clk 0:02:59]} 4. Bb2 {[%clk 0:02:52]}  Bb7 {[%clk 0:02:59]} 5. g3 {[%clk 0:02:53]}  d5 {[%clk 0:02:59]} 6. Bg2 {[%clk 0:02:53]}  Nbd7 {[%clk 0:03:00]} 7. O-O {[%clk 0:02:52]}  Bd6 {[%clk 0:03:00]} 8. d3 {[%clk 0:02:53]}  O-O {[%clk 0:03:00]} 9. a3 {[%clk 0:02:52]}  a6 {[%clk 0:03:00]} 10. b4 {[%clk 0:02:52]}  c5 {[%clk 0:03:00]} 11. bxc5 {[%clk 0:02:50]}  bxc5 {[%clk 0:02:58]} 12. Nc3 {[%clk 0:02:49]}  d4 {[%clk 0:02:56]} 13. Nb1 {[%clk 0:02:41]}  Rb8 {[%clk 0:02:56]} 14. Bc1 {[%clk 0:02:38]}  e5 {[%clk 0:02:54]} 15. Bg5 {[%clk 0:02:36]}  h6 {[%clk 0:02:52]} 16. Bxf6 {[%clk 0:02:35]}  Qxf6 {[%clk 0:02:49]} 17. Nbd2 {[%clk 0:02:36]}  Qe6 {[%clk 0:02:48]} 18. Rb1 {[%clk 0:02:29]}  Ba8 {[%clk 0:02:42]} 19. Qa4 {[%clk 0:02:27]}  f5 {[%clk 0:02:33]} 20. Qxa6 {[%clk 0:02:25]}  e4 {[%clk 0:02:33]} 21. Nh4 {[%clk 0:02:18]}  g5 {[%clk 0:02:22]} 22. Rxb8 {[%clk 0:02:15]}  Rxb8 {[%clk 0:02:22]} 23. Nxf5 {[%clk 0:02:14]}  Qxf5 {[%clk 0:02:01]} 24. Qxd6 {[%clk 0:02:12]}  Rb2 {[%clk 0:01:58]} 25. Nxe4 {[%clk 0:02:09]}  Rb6 {[%clk 0:01:38]} 26. Qc7 {[%clk 0:02:06]}  Rc6 {[%clk 0:01:01]} 27. Qd8+ {[%clk 0:02:02]}  Nf8 {[%clk 0:01:00]} 28. Nd6 {[%clk 0:01:56]}  Rxd6 {[%clk 0:00:54]} 29. Qxd6 {[%clk 0:01:57]}  Bxg2 {[%clk 0:00:54]} 30. Kxg2 {[%clk 0:01:58]}  Qg4 {[%clk 0:00:53]} 31. Qd5+ {[%clk 0:01:57]}  Kg7 {[%clk 0:00:51]} 32. Qe5+ {[%clk 0:01:56]}  Kf7 {[%clk 0:00:51]} 33. Rb1 {[%clk 0:01:55]}  Qc8 {[%clk 0:00:50]} 34. Rb8 {[%clk 0:01:49]}  Qc6+ {[%clk 0:00:50]} 35. Qd5+ {[%clk 0:01:47]}  Qxd5+ {[%clk 0:00:50]} 36. cxd5 {[%clk 0:01:48]}  Nd7 {[%clk 0:00:51]} 37. Rb7 {[%clk 0:01:47]}  Ke7 {[%clk 0:00:52]} 38. Kf3 {[%clk 0:01:46]}  Kd6 {[%clk 0:00:52]} 39. Rxd7+ {[%clk 0:01:45]}  Kxd7 {[%clk 0:00:53]} 40. Ke4 {[%clk 0:01:45]}  Kd6 {[%clk 0:00:54]} 41. f4 {[%clk 0:01:43]}  gxf4 {[%clk 0:00:53]} 42. gxf4 {[%clk 0:01:44]}  h5 {[%clk 0:00:54]} 43. f5 {[%clk 0:01:44]}  h4 {[%clk 0:00:55]} 44. h3 {[%clk 0:01:43]}  c4 {[%clk 0:00:55]} 45. dxc4 {[%clk 0:01:43]}  d3 {[%clk 0:00:56]} 46. exd3 {[%clk 0:01:42]}  Kc5 {[%clk 0:00:56]} 47. f6 {[%clk 0:01:42]}  Kd6 {[%clk 0:00:57]} 48. c5+ {[%clk 0:01:41]}  Kd7 {[%clk 0:00:58]} 49. Ke5 {[%clk 0:01:41]}  Ke8 {[%clk 0:00:58]} 50. Ke6 {[%clk 0:01:40]}  Kd8 {[%clk 0:00:59]} 51. a4 {[%clk 0:01:41]}  Kc7 {[%clk 0:00:59]} 52. f7 {[%clk 0:01:40]}  Kb7 {[%clk 0:01:00]} 53. f8=Q {[%clk 0:01:39]}  Ka6 {[%clk 0:01:01]} 54. Qa8# {[%clk 0:01:39]} 1-0


[Site "https://www.chess.com"]

[Event "Titled Tuesday Blitz May 16 Late 2023"]
[White "Blitz"]
[Black "Alexikov, Alexander"]
[BlackFideId "14103958"]
[WhiteElo "2517"]
[BlackElo "2186"]
[Result "1-0"]
[Round "02"]
[TimeControl "180+2"]
[Date "2023.05.16"]
[WhiteClock "0:00:08"]
[BlackClock "0:00:12"]

1. d4 {[%clk 0:03:00]}  Nf6 {[%clk 0:02:58]} 2. Nc3 {[%clk 0:03:00]}  g6 {[%clk 0:02:58]} 3. e4 {[%clk 0:03:00]}  d6 {[%clk 0:02:58]} 4. f4 {[%clk 0:02:58]}  Bg7 {[%clk 0:02:57]} 5. Nf3 {[%clk 0:02:54]}  O-O {[%clk 0:02:57]} 6. Be2 {[%clk 0:02:54]}  c5 {[%clk 0:02:54]} 7. dxc5 {[%clk 0:02:51]}  Qa5 {[%clk 0:02:53]} 8. O-O {[%clk 0:02:15]}  Qxc5+ {[%clk 0:02:50]} 9. Kh1 {[%clk 0:02:14]}  Nc6 {[%clk 0:02:43]} 10. h3 {[%clk 0:01:52]}  Nh5 {[%clk 0:02:20]} 11. Qe1 {[%clk 0:01:46]}  e5 {[%clk 0:02:18]} 12. f5 {[%clk 0:01:30]}  gxf5 {[%clk 0:02:15]} 13. exf5 {[%clk 0:01:30]}  Bxf5 {[%clk 0:02:08]} 14. g4 {[%clk 0:01:30]}  Bxc2 {[%clk 0:02:07]} 15. gxh5 {[%clk 0:01:27]}  Kh8 {[%clk 0:01:53]} 16. h6 {[%clk 0:01:05]}  Bf6 {[%clk 0:01:51]} 17. Ng5 {[%clk 0:00:59]}  Bxg5 {[%clk 0:01:23]} 18. Bxg5 {[%clk 0:01:00]}  f5 {[%clk 0:01:22]} 19. Qh4 {[%clk 0:00:50]}  Rf7 {[%clk 0:01:14]} 20. Bh5 {[%clk 0:00:25]}  Rd7 {[%clk 0:01:04]} 21. Rg1 {[%clk 0:00:15]}  Rg7 {[%clk 0:00:34]} 22. Bf6 {[%clk 0:00:10]}  Kg8 {[%clk 0:00:24]} 23. Rxg7+ {[%clk 0:00:10]}  Kf8 {[%clk 0:00:12]} 24. Be7+ {[%clk 0:00:08]} 1-0


[Site "https://www.chess.com"]

[Event "Titled Tuesday Blitz May 16 Late 2023"]
[White "Theytookourjobs"]
[Black "Grycel, Kamil"]
[BlackFideId "1115499"]
[WhiteElo "2329"]
[BlackElo "2517"]
[Result "0-1"]
[Round "02"]
[TimeControl "180+2"]
[Date "2023.05.16"]
[WhiteClock "0:00:21"]
[BlackClock "0:00:30"]

1. d4 {[%clk 0:02:51]}  d6 {[%clk 0:03:00]} 2. Bf4 {[%clk 0:02:45]}  Nf6 {[%clk 0:02:57]} 3. Nf3 {[%clk 0:02:45]}  Bg4 {[%clk 0:02:56]} 4. e3 {[%clk 0:02:44]}  c6 {[%clk 0:02:54]} 5. h3 {[%clk 0:02:44]}  Bh5 {[%clk 0:02:54]} 6. Nbd2 {[%clk 0:02:44]}  d5 {[%clk 0:02:52]} 7. Be2 {[%clk 0:02:43]}  e6 {[%clk 0:02:52]} 8. Ne5 {[%clk 0:02:43]}  Bxe2 {[%clk 0:02:51]} 9. Qxe2 {[%clk 0:02:44]}  Nbd7 {[%clk 0:02:51]} 10. O-O {[%clk 0:02:43]}  Nxe5 {[%clk 0:02:49]} 11. Bxe5 {[%clk 0:02:43]}  Be7 {[%clk 0:02:50]} 12. c3 {[%clk 0:02:42]}  a6 {[%clk 0:02:37]} 13. f4 {[%clk 0:02:41]}  O-O {[%clk 0:02:36]} 14. f5 {[%clk 0:02:41]}  c5 {[%clk 0:02:25]} 15. g4 {[%clk 0:02:36]}  Nd7 {[%clk 0:02:15]} 16. Bg3 {[%clk 0:02:24]}  Qb6 {[%clk 0:02:13]} 17. Rab1 {[%clk 0:01:53]}  Rae8 {[%clk 0:01:59]} 18. fxe6 {[%clk 0:01:51]}  Qxe6 {[%clk 0:01:54]} 19. Nf3 {[%clk 0:01:33]}  h6 {[%clk 0:01:40]} 20. Rbe1 {[%clk 0:01:31]}  Bd6 {[%clk 0:01:38]} 21. Qh2 {[%clk 0:01:27]}  Bxg3 {[%clk 0:01:25]} 22. Qxg3 {[%clk 0:01:28]}  Nf6 {[%clk 0:01:26]} 23. Ne5 {[%clk 0:01:18]}  Ne4 {[%clk 0:01:23]} 24. Qf4 {[%clk 0:01:17]}  f6 {[%clk 0:01:14]} 25. Ng6 {[%clk 0:01:03]}  Rf7 {[%clk 0:01:14]} 26. Nh4 {[%clk 0:01:03]}  g5 {[%clk 0:01:06]} 27. Qf5 {[%clk 0:00:57]}  gxh4 {[%clk 0:01:04]} 28. Qg6+ {[%clk 0:00:48]}  Rg7 {[%clk 0:01:02]} 29. Qxh6 {[%clk 0:00:49]}  Ng3 {[%clk 0:00:52]} 30. Rf3 {[%clk 0:00:42]}  Rf8 {[%clk 0:00:32]} 31. Qxh4 {[%clk 0:00:41]}  Ne4 {[%clk 0:00:32]} 32. Ref1 {[%clk 0:00:35]}  Ng5 {[%clk 0:00:32]} 33. Rg3 {[%clk 0:00:21]}  Rh7 {[%clk 0:00:30]} 0-1


[Site "https://www.chess.com"]

[Event "Titled Tuesday Blitz May 16 Late 2023"]
[White "Peatman, Carter"]
[Black "Hajiyev, Kanan"]
[WhiteFideId "2096480"]
[BlackFideId "13404148"]
[WhiteElo "2003"]
[BlackElo "2103"]
[Result "1-0"]
[Round "02"]
[TimeControl "180+2"]
[Date "2023.05.16"]
[WhiteClock "0:00:10"]
[BlackClock "0:00:23"]

1. d4 {[%clk 0:03:00]}  Nf6 {[%clk 0:02:57]} 2. Bf4 {[%clk 0:03:01]}  c5 {[%clk 0:02:56]} 3. e3 {[%clk 0:03:01]}  cxd4 {[%clk 0:02:57]} 4. exd4 {[%clk 0:03:01]}  d5 {[%clk 0:02:57]} 5. Bd3 {[%clk 0:02:58]}  Nc6 {[%clk 0:02:57]} 6. c3 {[%clk 0:02:58]}  Bg4 {[%clk 0:02:56]} 7. Qb3 {[%clk 0:02:57]}  Qd7 {[%clk 0:02:55]} 8. Nd2 {[%clk 0:02:57]}  e6 {[%clk 0:02:55]} 9. Ngf3 {[%clk 0:02:56]}  Bd6 {[%clk 0:02:56]} 10. Bxd6 {[%clk 0:02:52]}  Qxd6 {[%clk 0:02:57]} 11. Qxb7 {[%clk 0:02:52]}  O-O {[%clk 0:02:57]} 12. Qa6 {[%clk 0:02:51]}  Rfb8 {[%clk 0:02:54]} 13. Rb1 {[%clk 0:02:40]}  Rb6 {[%clk 0:02:53]} 14. Qa4 {[%clk 0:02:39]}  e5 {[%clk 0:02:44]} 15. dxe5 {[%clk 0:02:22]}  Nxe5 {[%clk 0:02:45]} 16. Be2 {[%clk 0:02:22]}  Bf5 {[%clk 0:02:21]} 17. Rd1 {[%clk 0:02:06]}  Rxb2 {[%clk 0:02:16]} 18. O-O {[%clk 0:02:00]}  Bc2 {[%clk 0:02:15]} 19. Qd4 {[%clk 0:01:35]}  Nxf3+ {[%clk 0:02:09]} 20. Bxf3 {[%clk 0:01:26]}  Bxd1 {[%clk 0:02:09]} 21. Nc4 {[%clk 0:01:25]}  Qb8 {[%clk 0:01:54]} 22. Rxd1 {[%clk 0:01:18]}  dxc4 {[%clk 0:01:50]} 23. Bxa8 {[%clk 0:01:18]}  h5 {[%clk 0:01:14]} 24. Bf3 {[%clk 0:01:08]}  Rxa2 {[%clk 0:01:09]} 25. Qxc4 {[%clk 0:01:08]}  Rb2 {[%clk 0:00:56]} 26. h3 {[%clk 0:00:49]}  Qb6 {[%clk 0:00:54]} 27. Qc8+ {[%clk 0:00:43]}  Kh7 {[%clk 0:00:54]} 28. Qf5+ {[%clk 0:00:41]}  g6 {[%clk 0:00:55]} 29. Qg5 {[%clk 0:00:30]}  Qxf2+ {[%clk 0:00:52]} 30. Kh1 {[%clk 0:00:30]}  Qb6 {[%clk 0:00:42]} 31. Qe5 {[%clk 0:00:26]}  a5 {[%clk 0:00:37]} 32. Qe7 {[%clk 0:00:26]}  Kg7 {[%clk 0:00:37]} 33. Rd6 {[%clk 0:00:20]}  Rb1+ {[%clk 0:00:36]} 34. Kh2 {[%clk 0:00:21]}  Qg1+ {[%clk 0:00:34]} 35. Kg3 {[%clk 0:00:20]}  Qe1+ {[%clk 0:00:24]} 36. Qxe1 {[%clk 0:00:19]}  Rxe1 {[%clk 0:00:25]} 37. Ra6 {[%clk 0:00:16]}  Re5 {[%clk 0:00:25]} 38. c4 {[%clk 0:00:15]}  Rc5 {[%clk 0:00:25]} 39. Kf2 {[%clk 0:00:08]}  Nd7 {[%clk 0:00:18]} 40. Ke3 {[%clk 0:00:07]}  Rxc4 {[%clk 0:00:15]} 41. Rxa5 {[%clk 0:00:07]}  Rc5 {[%clk 0:00:12]} 42. Ra7 {[%clk 0:00:06]}  Nf6 {[%clk 0:00:10]} 43. Kf2 {[%clk 0:00:06]}  Rc2+ {[%clk 0:00:09]} 44. Kg3 {[%clk 0:00:06]}  Rc3 {[%clk 0:00:10]} 45. Kh2 {[%clk 0:00:06]}  g5 {[%clk 0:00:10]} 46. Ra5 {[%clk 0:00:05]}  Kg6 {[%clk 0:00:11]} 47. Be2 {[%clk 0:00:03]}  Rc2 {[%clk 0:00:11]} 48. Bd3+ {[%clk 0:00:03]}  Kg7 {[%clk 0:00:12]} 49. Bxc2 {[%clk 0:00:04]}  Nd7 {[%clk 0:00:11]} 50. Bf5 {[%clk 0:00:04]}  Nb6 {[%clk 0:00:11]} 51. Be4 {[%clk 0:00:04]}  Nc4 {[%clk 0:00:12]} 52. Rxg5+ {[%clk 0:00:04]}  Kf6 {[%clk 0:00:11]} 53. Rxh5 {[%clk 0:00:04]}  Nd2 {[%clk 0:00:11]} 54. Rf5+ {[%clk 0:00:05]}  Kg6 {[%clk 0:00:11]} 55. Bd3 {[%clk 0:00:05]}  Kg7 {[%clk 0:00:11]} 56. Rf2 {[%clk 0:00:05]}  Nb3 {[%clk 0:00:12]} 57. Rf3 {[%clk 0:00:05]}  Nd4 {[%clk 0:00:13]} 58. Rg3+ {[%clk 0:00:06]}  Kf6 {[%clk 0:00:13]} 59. Bf1 {[%clk 0:00:07]}  Ke5 {[%clk 0:00:13]} 60. Bd3 {[%clk 0:00:07]}  f5 {[%clk 0:00:14]} 61. Bxf5 {[%clk 0:00:07]}  Nxf5 {[%clk 0:00:14]} 62. Rg5 {[%clk 0:00:07]}  Kf4 {[%clk 0:00:14]} 63. Rxf5+ {[%clk 0:00:08]}  Kxf5 {[%clk 0:00:15]} 64. h4 {[%clk 0:00:08]}  Kg6 {[%clk 0:00:15]} 65. g3 {[%clk 0:00:09]}  Kh5 {[%clk 0:00:16]} 66. Kh3 {[%clk 0:00:10]}  Kg6 {[%clk 0:00:17]} 67. g4 {[%clk 0:00:11]}  Kh6 {[%clk 0:00:18]} 68. g5+ {[%clk 0:00:12]}  Kg6 {[%clk 0:00:18]} 69. Kg3 {[%clk 0:00:12]}  Kh5 {[%clk 0:00:19]} 70. Kh3 {[%clk 0:00:13]}  Kg6 {[%clk 0:00:19]} 71. Kg4 {[%clk 0:00:14]}  Kh7 {[%clk 0:00:20]} 72. h5 {[%clk 0:00:15]}  Kg7 {[%clk 0:00:20]} 73. Kf5 {[%clk 0:00:15]}  Kh7 {[%clk 0:00:21]} 74. Kf6 {[%clk 0:00:15]}  Kg8 {[%clk 0:00:22]} 75. g6 {[%clk 0:00:13]}  Kh8 {[%clk 0:00:23]} 76. h6 {[%clk 0:00:10]}  Kg8 {[%clk 0:00:24]} 77. g7 {[%clk 0:00:08]}  Kh7 {[%clk 0:00:24]} 78. Kf7 {[%clk 0:00:09]}  Kxh6 {[%clk 0:00:24]} 79. g8=Q {[%clk 0:00:10]}  Kh5 {[%clk 0:00:25]} 80. Qg3 {[%clk 0:00:10]}  Kh6 {[%clk 0:00:23]} 81. Qh4# {[%clk 0:00:10]} 1-0


[Site "https://www.chess.com"]

[Event "Titled Tuesday Blitz May 16 Late 2023"]
[White "Becerra, Juan David"]
[Black "Szente Varga, Fruzsina"]
[WhiteFideId "4404998"]
[BlackFideId "712264"]
[WhiteElo "2304"]
[BlackElo "1994"]
[Result "0-1"]
[Round "02"]
[TimeControl "180+2"]
[Date "2023.05.16"]
[WhiteClock "0:00:34"]
[BlackClock "0:01:02"]

1. e4 {[%clk 0:02:18]}  Nf6 {[%clk 0:02:58]} 2. e5 {[%clk 0:02:18]}  Nd5 {[%clk 0:02:58]} 3. c4 {[%clk 0:02:17]}  Nb6 {[%clk 0:02:59]} 4. d4 {[%clk 0:02:18]}  d6 {[%clk 0:02:59]} 5. exd6 {[%clk 0:02:19]}  exd6 {[%clk 0:03:00]} 6. Nc3 {[%clk 0:02:19]}  Be7 {[%clk 0:03:01]} 7. Bd3 {[%clk 0:02:19]}  O-O {[%clk 0:03:01]} 8. Nge2 {[%clk 0:02:19]}  Bf6 {[%clk 0:03:02]} 9. O-O {[%clk 0:02:19]}  Re8 {[%clk 0:03:02]} 10. b3 {[%clk 0:02:17]}  Nc6 {[%clk 0:03:00]} 11. d5 {[%clk 0:02:16]}  Nb4 {[%clk 0:02:59]} 12. Be3 {[%clk 0:02:03]}  Bg4 {[%clk 0:02:56]} 13. Qd2 {[%clk 0:02:03]}  Nxd3 {[%clk 0:02:54]} 14. Qxd3 {[%clk 0:02:03]}  Bxe2 {[%clk 0:02:54]} 15. Nxe2 {[%clk 0:02:00]}  Bxa1 {[%clk 0:02:55]} 16. Rxa1 {[%clk 0:02:00]}  Qf6 {[%clk 0:02:54]} 17. Rd1 {[%clk 0:02:00]}  Nd7 {[%clk 0:02:53]} 18. h3 {[%clk 0:01:55]}  Ne5 {[%clk 0:02:52]} 19. Qd2 {[%clk 0:01:48]}  Qg6 {[%clk 0:02:52]} 20. Kh1 {[%clk 0:01:46]}  h6 {[%clk 0:02:41]} 21. Nd4 {[%clk 0:01:37]}  Qh5 {[%clk 0:02:38]} 22. f4 {[%clk 0:01:32]}  Ng4 {[%clk 0:02:19]} 23. Bg1 {[%clk 0:01:31]}  Nf6 {[%clk 0:02:12]} 24. Qd3 {[%clk 0:01:23]}  Re4 {[%clk 0:02:02]} 25. Nb5 {[%clk 0:01:02]}  Re7 {[%clk 0:01:22]} 26. Bd4 {[%clk 0:00:55]}  a6 {[%clk 0:01:15]} 27. Bxf6 {[%clk 0:00:52]}  gxf6 {[%clk 0:01:16]} 28. Nd4 {[%clk 0:00:53]}  Rae8 {[%clk 0:01:13]} 29. Nf3 {[%clk 0:00:49]}  Re3 {[%clk 0:01:10]} 30. Qd4 {[%clk 0:00:49]}  Rxf3 {[%clk 0:01:02]} 31. gxf3 {[%clk 0:00:43]}  Qxf3+ {[%clk 0:01:03]} 32. Kg1 {[%clk 0:00:34]}  Re2 {[%clk 0:01:02]} 0-1


[Site "https://www.chess.com"]

[Event "Titled Tuesday Blitz May 16 Late 2023"]
[White "Roman, Rodrigo"]
[Black "Estrada Nieto, Julian"]
[WhiteFideId "3701220"]
[BlackFideId "5101018"]
[WhiteElo "1995"]
[BlackElo "2161"]
[Result "1-0"]
[Round "02"]
[TimeControl "180+2"]
[Date "2023.05.16"]
[WhiteClock "0:00:11"]
[BlackClock "0:00:08"]

1. Nf3 {[%clk 0:02:59]}  d5 {[%clk 0:02:59]} 2. b3 {[%clk 0:03:00]}  Nf6 {[%clk 0:02:59]} 3. Bb2 {[%clk 0:03:00]}  Bg4 {[%clk 0:02:59]} 4. e3 {[%clk 0:03:01]}  Nbd7 {[%clk 0:02:59]} 5. d4 {[%clk 0:03:01]}  e6 {[%clk 0:02:58]} 6. Bd3 {[%clk 0:03:01]}  Bd6 {[%clk 0:02:58]} 7. Nbd2 {[%clk 0:03:02]}  O-O {[%clk 0:02:57]} 8. O-O {[%clk 0:03:02]}  a5 {[%clk 0:02:56]} 9. a3 {[%clk 0:03:01]}  c6 {[%clk 0:02:56]} 10. e4 {[%clk 0:03:00]}  dxe4 {[%clk 0:02:55]} 11. Nxe4 {[%clk 0:03:01]}  Nxe4 {[%clk 0:02:55]} 12. Bxe4 {[%clk 0:03:01]}  Be7 {[%clk 0:02:44]} 13. h3 {[%clk 0:02:58]}  Bh5 {[%clk 0:02:43]} 14. c4 {[%clk 0:02:51]}  Nf6 {[%clk 0:02:42]} 15. Bc2 {[%clk 0:02:51]}  c5 {[%clk 0:02:34]} 16. dxc5 {[%clk 0:02:33]}  Bxc5 {[%clk 0:02:34]} 17. Qe2 {[%clk 0:02:34]}  Qe7 {[%clk 0:02:22]} 18. Qd3 {[%clk 0:02:11]}  Bg6 {[%clk 0:02:20]} 19. Qc3 {[%clk 0:02:11]}  Bxc2 {[%clk 0:02:10]} 20. Qxc2 {[%clk 0:02:12]}  h6 {[%clk 0:02:02]} 21. Rfe1 {[%clk 0:02:11]}  Rfd8 {[%clk 0:01:59]} 22. Nh4 {[%clk 0:02:08]}  Ng4 {[%clk 0:01:29]} 23. Nf5 {[%clk 0:02:03]}  Qg5 {[%clk 0:01:29]} 24. hxg4 {[%clk 0:01:57]}  exf5 {[%clk 0:01:29]} 25. Re5 {[%clk 0:01:37]}  Rd2 {[%clk 0:01:24]} 26. Qxf5 {[%clk 0:01:20]}  Bxf2+ {[%clk 0:01:09]} 27. Qxf2 {[%clk 0:01:20]}  Rxf2 {[%clk 0:00:50]} 28. Rxg5 {[%clk 0:01:19]}  Rxb2 {[%clk 0:00:49]} 29. Rb5 {[%clk 0:01:19]}  Rd8 {[%clk 0:00:46]} 30. g5 {[%clk 0:01:00]}  h5 {[%clk 0:00:41]} 31. Kh2 {[%clk 0:00:54]}  Rd3 {[%clk 0:00:34]} 32. b4 {[%clk 0:00:50]}  a4 {[%clk 0:00:27]} 33. Rxb7 {[%clk 0:00:49]}  h4 {[%clk 0:00:26]} 34. c5 {[%clk 0:00:42]}  Rg3 {[%clk 0:00:24]} 35. Rg1 {[%clk 0:00:39]}  Rxa3 {[%clk 0:00:23]} 36. c6 {[%clk 0:00:39]}  Rc3 {[%clk 0:00:23]} 37. b5 {[%clk 0:00:38]}  Kh7 {[%clk 0:00:19]} 38. c7 {[%clk 0:00:36]}  a3 {[%clk 0:00:18]} 39. b6 {[%clk 0:00:29]}  a2 {[%clk 0:00:18]} 40. Ra1 {[%clk 0:00:21]}  Rcc2 {[%clk 0:00:17]} 41. Rb8 {[%clk 0:00:13]}  Rxg2+ {[%clk 0:00:16]} 42. Kh3 {[%clk 0:00:13]}  Rh2+ {[%clk 0:00:13]} 43. Kg4 {[%clk 0:00:13]}  Kg6 {[%clk 0:00:12]} 44. c8=Q {[%clk 0:00:12]}  Rbg2+ {[%clk 0:00:12]} 45. Kf4 {[%clk 0:00:11]}  Rf2+ {[%clk 0:00:12]} 46. Ke3 {[%clk 0:00:11]}  Re2+ {[%clk 0:00:12]} 47. Kd3 {[%clk 0:00:11]}  Rd2+ {[%clk 0:00:13]} 48. Ke4 {[%clk 0:00:12]}  Rhe2+ {[%clk 0:00:12]} 49. Kf4 {[%clk 0:00:09]}  Rf2+ {[%clk 0:00:12]} 50. Kg4 {[%clk 0:00:09]}  Rd4+ {[%clk 0:00:12]} 51. Kh3 {[%clk 0:00:09]}  Rd3+ {[%clk 0:00:12]} 52. Kxh4 {[%clk 0:00:08]}  Rf4+ {[%clk 0:00:11]} 53. Qg4 {[%clk 0:00:08]}  Rxg4+ {[%clk 0:00:11]} 54. Kxg4 {[%clk 0:00:08]}  Rb3 {[%clk 0:00:12]} 55. Rxa2 {[%clk 0:00:07]}  Rb4+ {[%clk 0:00:12]} 56. Kf3 {[%clk 0:00:08]}  Kxg5 {[%clk 0:00:12]} 57. b7 {[%clk 0:00:08]}  f5 {[%clk 0:00:12]} 58. Ra7 {[%clk 0:00:09]}  Rb3+ {[%clk 0:00:12]} 59. Ke2 {[%clk 0:00:09]}  g6 {[%clk 0:00:13]} 60. Re8 {[%clk 0:00:10]}  Rb2+ {[%clk 0:00:12]} 61. Kd1 {[%clk 0:00:10]}  Kf4 {[%clk 0:00:12]} 62. b8=Q+ {[%clk 0:00:10]}  Rxb8 {[%clk 0:00:12]} 63. Rxb8 {[%clk 0:00:10]}  g5 {[%clk 0:00:13]} 64. Rb4+ {[%clk 0:00:11]}  Kg3 {[%clk 0:00:12]} 65. Ra3+ {[%clk 0:00:11]}  Kh2 {[%clk 0:00:11]} 66. Rb2+ {[%clk 0:00:12]}  Kg1 {[%clk 0:00:11]} 67. Ra1 {[%clk 0:00:10]}  Kf1 {[%clk 0:00:09]} 68. Re2 {[%clk 0:00:10]}  f4 {[%clk 0:00:08]} 69. Kd2# {[%clk 0:00:11]} 1-0


[Site "https://www.chess.com"]

[Event "Titled Tuesday Blitz May 16 Late 2023"]
[White "Einarsson, Halldor Gretar"]
[Black "Sliwicki, Damian"]
[WhiteFideId "2300150"]
[BlackFideId "1127128"]
[WhiteElo "2110"]
[BlackElo "2030"]
[Result "0-1"]
[Round "02"]
[TimeControl "180+2"]
[Date "2023.05.16"]
[WhiteClock "0:01:04"]
[BlackClock "0:01:37"]

1. d4 {[%clk 0:02:58]}  Nf6 {[%clk 0:02:57]} 2. c4 {[%clk 0:02:57]}  e5 {[%clk 0:02:56]} 3. dxe5 {[%clk 0:02:56]}  Ng4 {[%clk 0:02:57]} 4. Nf3 {[%clk 0:02:56]}  Nc6 {[%clk 0:02:56]} 5. a3 {[%clk 0:02:49]}  Ngxe5 {[%clk 0:02:51]} 6. e3 {[%clk 0:02:46]}  Be7 {[%clk 0:02:42]} 7. Be2 {[%clk 0:02:44]}  O-O {[%clk 0:02:41]} 8. O-O {[%clk 0:02:43]}  d6 {[%clk 0:02:40]} 9. Nc3 {[%clk 0:02:42]}  Bg4 {[%clk 0:02:37]} 10. b3 {[%clk 0:02:38]}  Bf6 {[%clk 0:02:31]} 11. Bb2 {[%clk 0:02:37]}  Re8 {[%clk 0:02:27]} 12. Ra2 {[%clk 0:02:05]}  Nxf3+ {[%clk 0:02:13]} 13. Bxf3 {[%clk 0:02:04]}  Bxf3 {[%clk 0:02:12]} 14. Qxf3 {[%clk 0:02:04]}  Qd7 {[%clk 0:02:13]} 15. Nd5 {[%clk 0:01:45]}  Bxb2 {[%clk 0:02:09]} 16. Rxb2 {[%clk 0:01:44]}  Re6 {[%clk 0:02:08]} 17. Qg4 {[%clk 0:01:38]}  Ne5 {[%clk 0:02:03]} 18. Qg3 {[%clk 0:01:28]}  Rae8 {[%clk 0:01:43]} 19. Rd2 {[%clk 0:01:24]}  Rg6 {[%clk 0:01:38]} 20. Qh4 {[%clk 0:01:04]}  Nf3+ {[%clk 0:01:37]} 0-1


[Site "https://www.chess.com"]